bitfinex/quotes_SOLUSD_20260124
["timestamp","ask_amount","ask_price","bid_price","bid_amount"]
[1769236121379,0.82974239,127.62,127.59,2.98818947]
[1769236121584,5.39048411,127.61,127.59,2.98818947]
[1769236121884,0.82974239,127.62,127.59,2.98818947]
[1769236122068,5.39048633,127.61,127.59,2.98818947]
[1769236122369,0.82974239,127.62,127.59,2.98818947]
[1769236122565,5.39088414,127.61,127.59,2.98818947]
[1769236122767,0.82974239,127.62,127.59,2.98818947]
[1769236122968,5.39088489,127.61,127.59,2.98818947]
[1769236123174,0.82974239,127.62,127.59,2.98818947]
[1769236123375,5.39089164,127.61,127.59,2.98818947]
[1769236123576,0.82974239,127.62,127.59,2.98818947]
[1769236123783,5.39090934,127.61,127.59,2.98818947]
[1769236123983,0.82974239,127.62,127.59,2.98818947]
[1769236124183,5.39091069,127.61,127.59,2.98818947]
[1769236124392,0.82974239,127.62,127.59,2.98818947]
[1769236124594,5.39094022,127.61,127.59,2.98818947]
[1769236124774,0.82974239,127.62,127.59,2.98818947]
[1769236124974,5.39094022,127.61,127.59,2.98818947]
[1769236125184,0.82974239,127.62,127.59,2.98818947]
[1769236125376,5.39094049,127.61,127.59,2.98818947]
[1769236125604,0.82974239,127.62,127.59,2.98818947]
[1769236125786,5.39095671,127.61,127.59,2.98818947]
[1769236125980,0.82974239,127.62,127.59,2.98818947]
[1769236126180,5.39095584,127.61,127.59,2.98818947]
[1769236126481,0.82974239,127.62,127.59,2.98818947]
[1769236126782,5.39098788,127.61,127.59,2.98818947]
[1769236127084,0.82974239,127.62,127.59,2.98818947]
[1769236127272,5.39099497,127.61,127.59,2.98818947]
[1769236127474,0.82974239,127.62,127.59,2.98818947]
[1769236127676,5.3910306,127.61,127.59,2.98818947]
[1769236127868,0.82974239,127.62,127.59,2.98818947]
[1769236128066,5.3910306,127.61,127.59,2.98818947]
[1769236128270,0.82974239,127.62,127.59,2.98818947]
[1769236128570,5.39093578,127.61,127.59,2.98818947]
[1769236128769,0.82974239,127.62,127.59,2.98818947]
[1769236128970,5.39097538,127.61,127.59,2.98818947]
[1769236129171,0.82974239,127.62,127.59,2.98818947]
[1769236129374,5.39097403,127.61,127.59,2.98818947]
[1769236129588,0.82974239,127.62,127.59,2.98818947]
[1769236129793,5.39101865,127.61,127.59,2.98818947]
[1769236129986,0.82974239,127.62,127.59,2.98818947]
[1769236130284,5.39101865,127.61,127.59,2.98818947]
[1769236130484,0.82974239,127.62,127.59,2.98818947]
[1769236130672,5.39106589,127.61,127.59,2.98818947]
[1769236130869,0.82974239,127.62,127.59,2.98818947]
[1769236131073,5.39106589,127.61,127.59,2.98818947]
[1769236131280,0.82974239,127.62,127.59,2.98818947]
[1769236131474,5.39108312,127.61,127.59,2.98818947]
[1769236131700,0.82974239,127.62,127.59,2.98818947]
[1769236131891,5.39111454,127.61,127.59,2.98818947]
[1769236132084,0.82974239,127.62,127.59,2.98818947]
[1769236132286,5.39111589,127.61,127.59,2.98818947]
[1769236132486,0.82974239,127.62,127.59,2.98818947]
[1769236132694,5.39201358,127.61,127.59,0.88349261]
[1769236132881,0.82974239,127.62,127.59,0.88349261]
[1769236133094,5.39201358,127.61,127.59,0.88349261]
[1769236133297,0.82974239,127.62,127.59,0.88349261]
[1769236133498,5.39220154,127.61,127.59,0.88349261]
[1769236133698,0.82974239,127.62,127.59,0.88349261]
[1769236133894,5.39220154,127.61,127.59,0.88349261]
[1769236134093,0.82974239,127.62,127.59,0.88349261]
[1769236134300,5.39220241,127.61,127.59,0.88349261]
[1769236134504,5.39220241,127.6,127.59,0.88349261]
[1769236134798,5.39220241,127.61,127.59,0.88349261]
[1769236134998,5.39220241,127.6,127.59,0.88349261]
[1769236135192,5.39220241,127.61,127.59,0.88349261]
[1769236135505,0.82974239,127.62,127.59,0.88349261]
[1769236135692,5.38762958,127.61,127.59,0.88349261]
[1769236135892,0.82974239,127.62,127.59,0.88349261]
[1769236136205,5.38762958,127.61,127.59,0.88349261]
[1769236136379,0.82974239,127.62,127.59,0.88349261]
[1769236136579,5.38762952,127.61,127.59,0.88349261]
[1769236136803,0.82974239,127.62,127.59,0.88349261]
[1769236137007,5.38762952,127.61,127.59,0.88349261]
[1769236137207,0.82974239,127.62,127.59,0.88349261]
[1769236137504,5.38762817,127.61,127.59,0.88349261]
[1769236137699,0.82974239,127.62,127.59,0.88349261]
[1769236137998,5.3876284,127.61,127.59,0.88349261]
[1769236138198,0.82974239,127.62,127.59,0.88349261]
[1769236138398,5.3876284,127.61,127.59,0.88349261]
[1769236138601,0.82974239,127.62,127.59,0.88349261]
[1769236138799,5.38763028,127.61,127.59,0.88349261]
[1769236139001,0.82974239,127.62,127.59,0.88349261]
[1769236139202,5.38763028,127.61,127.59,0.88349261]
[1769236139402,0.82974239,127.62,127.59,0.88349261]
[1769236139595,5.38763079,127.61,127.59,0.88349261]
[1769236139897,0.82974239,127.62,127.59,0.88349261]
[1769236140096,5.38762944,127.61,127.59,0.88349261]
[1769236140395,0.82974239,127.62,127.59,0.88349261]
[1769236140611,5.38762957,127.61,127.59,0.88349261]
[1769236140787,0.82974239,127.62,127.59,0.88349261]
[1769236141086,5.38763092,127.61,127.59,0.88349261]
[1769236141286,0.82974239,127.62,127.59,0.88349261]
[1769236141582,5.38626134,127.61,127.59,0.88349261]
[1769236141802,0.82974239,127.62,127.59,0.88349261]
[1769236142003,5.38626269,127.61,127.59,0.88349261]
[1769236142204,0.82974239,127.62,127.59,0.88349261]
[1769236142405,5.38626151,127.61,127.59,0.88349261]
[1769236142608,0.82974239,127.62,127.59,0.88349261]
[1769236142801,5.38626186,127.61,127.59,0.88349261]
[1769236142987,0.82974239,127.62,127.59,0.88349261]
[1769236143187,5.38604311,127.61,127.59,0.88349261]
[1769236143483,0.82974239,127.62,127.59,0.88349261]
[1769236143688,5.38604321,127.61,127.59,0.88349261]
[1769236143887,0.82974239,127.62,127.59,0.88349261]
[1769236144106,5.38604186,127.61,127.59,0.88349261]
[1769236144299,0.82974239,127.62,127.59,0.88349261]
[1769236144499,5.38604299,127.61,127.59,0.88349261]
[1769236144699,0.82974239,127.62,127.59,0.88349261]
[1769236144909,5.38561867,127.61,127.59,0.88349261]
[1769236145106,0.82974239,127.62,127.59,0.88349261]
[1769236145409,5.38474981,127.61,127.59,0.88349261]
[1769236145710,0.82974239,127.62,127.59,0.88349261]
[1769236145912,5.38484085,127.61,127.59,0.88349261]
[1769236146209,0.82974239,127.62,127.59,0.88349261]
[1769236146411,5.38475515,127.61,127.59,0.88349261]
[1769236146613,0.82974239,127.62,127.59,0.88349261]
[1769236146795,5.38475487,127.61,127.59,0.88349261]
[1769236146991,0.82974239,127.62,127.59,0.88349261]
[1769236147191,5.38475622,127.61,127.59,0.88349261]
[1769236147398,0.82974239,127.62,127.59,0.88349261]
[1769236147596,5.38484383,127.61,127.59,0.88349261]
[1769236147890,0.82974239,127.62,127.59,0.88349261]
[1769236148089,5.38475341,127.61,127.59,0.88349261]
[1769236148313,0.82974239,127.62,127.59,0.88349261]
[1769236148616,5.38484414,127.61,127.59,0.88349261]
[1769236148815,0.82974239,127.62,127.59,0.88349261]
[1769236148998,5.38541153,127.61,127.59,0.88349261]
[1769236149201,0.82974239,127.62,127.59,0.88349261]
[1769236149398,5.38540562,127.61,127.59,0.88349261]
[1769236149598,0.82974239,127.62,127.59,0.88349261]
[1769236149798,5.38540441,127.61,127.59,0.88349261]
[1769236150014,0.82974239,127.62,127.59,0.88349261]
[1769236150198,5.38538371,127.61,127.59,0.88349261]
[1769236150387,0.82974239,127.62,127.59,0.88349261]
[1769236150591,5.38538356,127.61,127.59,0.88349261]
[1769236150806,0.82974239,127.62,127.59,0.88349261]
[1769236151016,5.38540474,127.61,127.59,0.88349261]
[1769236151312,0.82974239,127.62,127.59,0.88349261]
[1769236151513,5.3853971,127.61,127.59,0.88349261]
[1769236151813,0.82974239,127.62,127.59,0.88349261]
[1769236152000,5.38539575,127.61,127.59,0.88349261]
[1769236152200,0.82974239,127.62,127.59,0.88349261]
[1769236152405,5.38539607,127.61,127.59,0.88349261]
[1769236152609,0.82974239,127.62,127.59,0.88349261]
[1769236152904,5.38582262,127.61,127.59,0.88349261]
[1769236153114,0.82974239,127.62,127.59,0.88349261]
[1769236153115,5.38582262,127.6,127.59,0.88349261]
[1769236153309,5.38582262,127.61,127.59,0.88349261]
[1769236153495,0.82974239,127.62,127.59,0.88349261]
[1769236153794,5.38627565,127.61,127.59,0.88349261]
[1769236153997,0.82974239,127.62,127.59,0.88349261]
[1769236154194,5.38628556,127.61,127.59,0.88349261]
[1769236154396,0.82974239,127.62,127.59,0.88349261]
[1769236154604,5.38628392,127.61,127.59,0.88349261]
[1769236154805,0.82974239,127.62,127.59,0.88349261]
[1769236155002,5.38628527,127.61,127.59,0.88349261]
[1769236155206,0.82974239,127.62,127.59,0.88349261]
[1769236155505,5.38628619,127.61,127.59,0.88349261]
[1769236155700,0.82974239,127.62,127.59,0.88349261]
[1769236155900,5.38628592,127.61,127.59,0.88349261]
[1769236156196,0.82974239,127.62,127.59,0.88349261]
[1769236156398,5.38627493,127.61,127.59,0.88349261]
[1769236156596,0.82974239,127.62,127.59,0.88349261]
[1769236156813,5.38627489,127.61,127.59,0.88349261]
[1769236157014,0.82974239,127.62,127.59,0.88349261]
[1769236157192,5.38628184,127.61,127.59,0.88349261]
[1769236157393,0.82974239,127.62,127.59,0.88349261]
[1769236157594,5.38606969,127.61,127.59,0.88349261]
[1769236157803,0.82974239,127.62,127.59,0.88349261]
[1769236158099,5.38607104,127.61,127.59,0.88349261]
[1769236158397,0.82974239,127.62,127.59,0.88349261]
[1769236158598,5.38617757,127.61,127.59,0.88349261]
[1769236158804,0.82974239,127.62,127.59,0.88349261]
[1769236159005,5.38617757,127.61,127.59,0.88349261]
[1769236159215,0.82974239,127.62,127.59,0.88349261]
[1769236159415,5.38617469,127.61,127.59,0.88349261]
[1769236159615,0.82974239,127.62,127.59,0.88349261]
[1769236159818,5.38617595,127.61,127.59,0.88349261]
[1769236160010,0.82974239,127.62,127.59,0.88349261]
[1769236160204,5.38617595,127.61,127.59,0.88349261]
[1769236160406,0.82974239,127.62,127.59,0.88349261]
[1769236160624,5.38617252,127.61,127.59,0.88349261]
[1769236160916,0.82974239,127.62,127.59,0.88349261]
[1769236161117,5.38617117,127.61,127.59,0.88349261]
[1769236161310,0.82974239,127.62,127.59,0.88349261]
[1769236161492,5.38617006,127.61,127.59,0.88349261]
[1769236161696,0.82974239,127.62,127.59,0.88349261]
[1769236161898,5.38617006,127.61,127.59,0.88349261]
[1769236162100,0.82974239,127.62,127.59,0.88349261]
[1769236162392,5.38617141,127.61,127.59,0.88349261]
[1769236162694,0.82974239,127.62,127.59,0.88349261]
[1769236162898,5.38616883,127.61,127.59,0.88349261]
[1769236163092,0.82974239,127.62,127.59,0.88349261]
[1769236163301,5.38616883,127.61,127.59,0.88349261]
[1769236163504,0.82974239,127.62,127.59,0.88349261]
[1769236163695,5.38616666,127.61,127.59,0.88349261]
[1769236163912,0.82974239,127.62,127.59,0.88349261]
[1769236164116,5.38616666,127.61,127.59,0.88349261]
[1769236164306,0.82974239,127.62,127.59,0.88349261]
[1769236164508,5.38616618,127.61,127.59,0.88349261]
[1769236164707,0.82974239,127.62,127.59,0.88349261]
[1769236164907,5.38616618,127.61,127.59,0.88349261]
[1769236165114,0.82974239,127.62,127.59,0.88349261]
[1769236165310,5.38616483,127.61,127.59,0.88349261]
[1769236165506,0.82974239,127.62,127.59,0.88349261]
[1769236165705,5.38490939,127.61,127.59,0.88349261]
[1769236165914,0.82974239,127.62,127.59,0.88349261]
[1769236166123,5.38491074,127.61,127.59,0.88349261]
[1769236166322,0.82974239,127.62,127.59,0.88349261]
[1769236166511,5.38535316,127.61,127.59,0.88349261]
[1769236166700,0.82974239,127.62,127.59,0.88349261]
[1769236166901,5.38535316,127.61,127.59,0.88349261]
[1769236167101,0.82974239,127.62,127.59,0.88349261]
[1769236167314,5.38535451,127.61,127.59,0.88349261]
[1769236167514,0.82974239,127.62,127.59,0.88349261]
[1769236167813,5.38493036,127.61,127.59,0.88349261]
[1769236168014,0.82974239,127.62,127.59,0.88349261]
[1769236168213,5.38492045,127.61,127.59,0.88349261]
[1769236168397,0.82974239,127.62,127.59,0.88349261]
[1769236168611,5.38491946,127.61,127.59,0.88349261]
[1769236168813,0.82974239,127.62,127.59,0.88349261]
[1769236169013,5.38492081,127.61,127.59,0.88349261]
[1769236169213,0.82974239,127.62,127.59,0.88349261]
[1769236169405,5.38492082,127.61,127.59,0.88349261]
[1769236169605,0.82974239,127.62,127.59,0.88349261]
[1769236169904,5.38492268,127.61,127.59,0.88349261]
[1769236170104,0.82974239,127.62,127.59,0.88349261]
[1769236170408,5.3846982,127.61,127.59,0.88349261]
[1769236170709,0.82974239,127.62,127.59,0.88349261]
[1769236171009,5.38469755,127.61,127.59,0.88349261]
[1769236171210,0.82974239,127.62,127.59,0.88349261]
[1769236171507,5.38468904,127.61,127.59,0.88349261]
[1769236171708,0.82974239,127.62,127.59,0.88349261]
[1769236171913,5.38426684,127.61,127.59,0.88349261]
[1769236172115,0.82974239,127.62,127.59,0.88349261]
[1769236172413,5.38426819,127.61,127.59,0.88349261]
[1769236172614,0.82974239,127.62,127.59,0.88349261]
[1769236172821,5.38426965,127.61,127.59,0.88349261]
[1769236173024,0.82974239,127.62,127.59,0.88349261]
[1769236173227,5.3842683,127.61,127.59,0.88349261]
[1769236173427,0.82974239,127.62,127.59,0.88349261]
[1769236173640,5.38426847,127.61,127.59,0.88349261]
[1769236173805,0.82974239,127.62,127.59,0.88349261]
[1769236174002,5.38426712,127.61,127.59,0.88349261]
[1769236174202,0.82974239,127.62,127.59,0.88349261]
[1769236174405,5.38426865,127.61,127.59,0.88349261]
[1769236174744,0.82974239,127.62,127.59,0.88349261]
[1769236174935,5.3842668,127.61,127.59,0.88349261]
[1769236175223,0.82974239,127.62,127.59,0.88349261]
[1769236175418,5.38426852,127.61,127.59,0.88349261]
[1769236175607,0.82974239,127.62,127.59,0.88349261]
[1769236175810,5.38426801,127.61,127.59,0.88349261]
[1769236176007,0.82974239,127.62,127.59,0.88349261]
[1769236176209,5.38426666,127.61,127.59,0.88349261]
[1769236176409,0.82974239,127.62,127.59,0.88349261]
[1769236176609,5.38426735,127.61,127.59,0.88349261]
[1769236176846,0.82974239,127.62,127.59,0.88349261]
[1769236177016,5.38426735,127.61,127.59,0.88349261]
[1769236177206,0.82974239,127.62,127.59,0.88349261]
[1769236177410,5.38426775,127.61,127.59,0.88349261]
[1769236177617,0.82974239,127.62,127.59,0.88349261]
[1769236177817,5.38426784,127.61,127.59,0.88349261]
[1769236178135,0.82974239,127.62,127.59,0.88349261]
[1769236178417,5.38426682,127.61,127.59,0.88349261]
[1769236178615,0.82974239,127.62,127.59,0.88349261]
[1769236178816,5.38426512,127.61,127.59,0.88349261]
[1769236179026,0.82974239,127.62,127.59,0.88349261]
[1769236179228,5.38426512,127.61,127.59,0.88349261]
[1769236179433,0.82974239,127.62,127.59,0.88349261]
[1769236179731,5.38425225,127.61,127.59,0.88349261]
[1769236179935,0.82974239,127.62,127.59,0.88349261]
[1769236180232,5.38401482,127.61,127.59,0.88349261]
[1769236180411,0.82974239,127.62,127.59,0.88349261]
[1769236180613,5.38402565,127.61,127.59,0.88349261]
[1769236180808,0.82974239,127.62,127.59,0.88349261]
[1769236181026,5.38402429,127.61,127.59,0.88349261]
[1769236181225,0.82974239,127.62,127.59,0.88349261]
[1769236181511,5.38402471,127.61,127.59,0.88349261]
[1769236181708,0.82974239,127.62,127.59,0.88349261]
[1769236181908,5.38402637,127.61,127.59,0.88349261]
[1769236182123,0.82974239,127.62,127.59,0.88349261]
[1769236182324,5.38402501,127.61,127.59,0.88349261]
[1769236182529,0.82974239,127.62,127.59,0.88349261]
[1769236182728,5.38402578,127.61,127.59,0.88349261]
[1769236182930,0.82974239,127.62,127.59,0.88349261]
[1769236183126,5.38402512,127.61,127.59,0.88349261]
[1769236183325,0.82974239,127.62,127.59,0.88349261]
[1769236183526,5.38402651,127.61,127.59,0.88349261]
[1769236183732,0.82974239,127.62,127.59,0.88349261]
[1769236183940,5.38402651,127.61,127.59,0.88349261]
[1769236184235,0.82974239,127.62,127.59,0.88349261]
[1769236184424,5.38402709,127.61,127.59,0.88349261]
[1769236184624,0.82974239,127.62,127.59,0.88349261]
[1769236184825,5.38402758,127.61,127.59,0.88349261]
[1769236185020,0.82974239,127.62,127.59,0.88349261]
[1769236185219,5.38402622,127.61,127.59,0.88349261]
[1769236185421,0.82974239,127.62,127.59,0.88349261]
[1769236185620,5.38402677,127.61,127.59,0.88349261]
[1769236185821,0.82974239,127.62,127.59,0.88349261]
[1769236186023,5.38402812,127.61,127.59,0.88349261]
[1769236186321,0.82974239,127.62,127.59,0.88349261]
[1769236186522,5.38402903,127.61,127.59,0.88349261]
[1769236186724,0.82974239,127.62,127.59,0.88349261]
[1769236186925,5.38402767,127.61,127.59,0.88349261]
[1769236187125,0.82974239,127.62,127.59,0.88349261]
[1769236187331,5.38403584,127.61,127.59,0.88349261]
[1769236187531,0.82974239,127.62,127.59,0.88349261]
[1769236187725,5.38403625,127.61,127.59,0.88349261]
[1769236187938,0.82974239,127.62,127.59,0.88349261]
[1769236188138,5.38403625,127.61,127.59,0.88349261]
[1769236188438,0.82974239,127.62,127.59,0.88349261]
[1769236188640,5.38392414,127.61,127.59,0.88349261]
[1769236188938,0.82974239,127.62,127.59,0.88349261]
[1769236189138,5.38392414,127.61,127.59,0.88349261]
[1769236189332,0.82974239,127.62,127.59,0.88349261]
[1769236189518,5.38344538,127.61,127.59,0.88349261]
[1769236189724,0.82974239,127.62,127.59,0.88349261]
[1769236190021,5.38347475,127.61,127.59,0.88349261]
[1769236190217,0.82974239,127.62,127.59,0.88349261]
[1769236190518,5.38347639,127.61,127.59,0.88349261]
[1769236190817,0.82974239,127.62,127.59,0.88349261]
[1769236191021,5.38347504,127.61,127.59,0.88349261]
[1769236191222,0.82974239,127.62,127.59,0.88349261]
[1769236191445,5.38347555,127.61,127.59,0.88349261]
[1769236191642,0.82974239,127.62,127.59,0.88349261]
[1769236191823,5.38347691,127.61,127.59,0.88349261]
[1769236192019,0.82974239,127.62,127.59,0.88349261]
[1769236192235,5.38347691,127.61,127.59,0.88349261]
[1769236192534,0.82974239,127.62,127.59,0.88349261]
[1769236192735,5.38347719,127.61,127.59,0.88349261]
[1769236192924,0.82974239,127.62,127.59,0.88349261]
[1769236193124,5.38347719,127.61,127.59,0.88349261]
[1769236193325,0.82974239,127.62,127.59,0.88349261]
[1769236193526,5.38347641,127.61,127.59,0.88349261]
[1769236193734,0.82974239,127.62,127.59,0.88349261]
[1769236194046,5.38347776,127.61,127.59,0.88349261]
[1769236194246,0.82974239,127.62,127.59,0.88349261]
[1769236194426,5.38347837,127.61,127.59,0.88349261]
[1769236194626,0.82974239,127.62,127.59,0.88349261]
[1769236194827,5.38347837,127.61,127.59,0.88349261]
[1769236195025,0.82974239,127.62,127.59,0.88349261]
[1769236195246,5.38347837,127.61,127.59,0.88349261]
[1769236195448,0.82974239,127.62,127.59,0.88349261]
[1769236195746,5.37982293,127.61,127.59,0.88349261]
[1769236196045,0.82974239,127.62,127.59,0.88349261]
[1769236196347,5.37982293,127.61,127.59,0.88349261]
[1769236196549,0.82974239,127.62,127.59,0.88349261]
[1769236196850,5.37982222,127.61,127.59,0.88349261]
[1769236197035,0.82974239,127.62,127.59,0.88349261]
[1769236197336,5.37982357,127.61,127.59,0.88349261]
[1769236197529,0.82974239,127.62,127.59,0.88349261]
[1769236197728,5.37982425,127.61,127.59,0.88349261]
[1769236197933,0.86555387,127.62,127.59,0.88349261]
[1769236198142,5.3798229,127.61,127.59,0.88349261]
[1769236198440,0.86555387,127.62,127.59,0.88349261]
[1769236198634,5.3798253,127.61,127.59,0.88349261]
[1769236198835,0.86555387,127.62,127.59,0.88349261]
[1769236199035,6.24537782,127.61,127.58,0.91461191]
[1769236199235,0.86555387,127.61,127.58,0.91461191]
[1769236205457,0.9282944,127.63,127.58,2.10477819]
[1769236205769,6.306984,127.62,127.59,3.01703219]
[1769236206058,5.3786896,127.61,127.59,3.01703219]
[1769236207049,5.3786896,127.61,127.57,0.1]
[1769236207050,0.94901996,127.64,127.6,2.10477819]
[1769236207256,0.94901996,127.64,127.62,2.10477819]
[1769236208231,0.94901996,127.64,127.61,2.10477819]
[1769236208848,0.94901996,127.64,127.61,2.10392843]
[1769236209261,0.94901996,127.64,127.61,21.68604738]
[1769236211668,0.94901996,127.64,127.62,2.10392843]
[1769236214573,19.58211895,127.67,127.62,2.10392843]
[1769236214853,0.94901996,127.66,127.64,2.10392843]
[1769236216161,0.94901996,127.66,127.64,9.93630383]
[1769236236278,0.94901996,127.66,127.65,2.10392843]
[1769236236460,0.94901996,127.66,127.64,9.93630383]
[1769236238888,0.97490574,127.68,127.65,2.10392843]
[1769236243389,0.97490574,127.68,127.65,10.00406109]
[1769236257196,6.17478373,127.67,127.65,10.00406109]
[1769236257398,0.97490574,127.67,127.65,10.00406109]
[1769236259096,0.97490574,127.67,127.65,10.09650615]
[1769236260720,0.97490574,127.67,127.65,10.00406109]
[1769236268902,0.97490574,127.67,127.65,10.00285926]
[1769236269598,0.97490574,127.67,127.65,2.1027266]
[1769236277208,0.94901996,127.69,127.65,2.21084221]
[1769236277407,6.15236147,127.68,127.65,2.21084221]
[1769236277609,5.20334151,127.67,127.65,2.21084221]
[1769236285018,6.15236147,127.67,127.65,2.21084221]
[1769236285201,0.94901996,127.67,127.65,2.21084221]
[1769236289818,0.94901996,127.67,127.65,2.1027266]
[1769236295228,6.1460558,127.66,127.64,23.51926619]
[1769236295411,0.94901996,127.66,127.63,2.22267965]
[1769236304039,5.1934015,127.65,127.63,2.22267965]
[1769236304335,0.94901996,127.66,127.63,2.22267965]
[1769236304538,5.19278988,127.65,127.63,2.22267965]
[1769236304732,0.94901996,127.66,127.63,2.22267965]
[1769236304938,5.19278988,127.65,127.63,2.22267965]
[1769236305142,0.94901996,127.66,127.63,2.22267965]
[1769236319152,0.94901996,127.66,127.63,2.1027266]
[1769236320348,0.94901996,127.65,127.62,7.83228074]
[1769236320533,0.94901996,127.65,127.61,2.1027266]
[1769236323951,0.94901996,127.65,127.61,2.23681411]
[1769236326042,0.94901996,127.65,127.61,10.06999619]
[1769236326235,0.94901996,127.65,127.61,2.23681411]
[1769236327942,0.94901996,127.65,127.61,10.06999619]
[1769236328853,0.94901996,127.65,127.61,10.07120357]
[1769236330358,0.94901996,127.65,127.61,9.93711606]
[1769236330660,0.94901996,127.63,127.61,2.10393398]
[1769236338360,0.94901996,127.64,127.62,2.10393398]
[1769236338569,0.94901996,127.65,127.63,2.10393398]
[1769236341364,0.94901996,127.66,127.64,2.10393398]
[1769236349774,0.94901996,127.66,127.63,2.24442338]
[1769236351379,0.94901996,127.66,127.64,2.10393398]
[1769236359778,9.93601418,127.68,127.64,2.10393398]
[1769236359779,0.97737322,127.67,127.64,2.10393398]
[1769236359985,5.2036019,127.66,127.64,2.10393398]
[1769236360180,0.97737322,127.67,127.64,2.10393398]
[1769236360476,5.20366038,127.66,127.64,2.10393398]
[1769236360678,0.97737322,127.67,127.64,2.10393398]
[1769236360885,5.20386626,127.66,127.64,2.10393398]
[1769236361184,0.97737322,127.67,127.64,2.10393398]
[1769236361386,5.20392425,127.66,127.64,2.10393398]
[1769236361686,0.97737322,127.67,127.64,2.10393398]
[1769236361887,5.20392425,127.66,127.64,2.10393398]
[1769236362090,0.97737322,127.67,127.64,2.10393398]
[1769236362270,5.20417475,127.66,127.64,2.10393398]
[1769236362470,0.97737322,127.67,127.64,2.10393398]
[1769236362670,5.20419032,127.66,127.64,2.10393398]
[1769236362872,0.97737322,127.67,127.64,2.10393398]
[1769236363072,5.20419107,127.66,127.64,2.10393398]
[1769236363288,0.97737322,127.67,127.64,2.10393398]
[1769236363491,5.20425017,127.66,127.64,2.10393398]
[1769236363689,0.97737322,127.67,127.64,2.10393398]
[1769236363891,5.20425151,127.66,127.64,2.10393398]
[1769236364080,0.97737322,127.67,127.64,2.10393398]
[1769236364282,5.20429176,127.66,127.64,2.10393398]
[1769236364502,0.97737322,127.67,127.64,2.10393398]
[1769236364696,5.20285461,127.66,127.64,2.10393398]
[1769236364903,0.97737322,127.67,127.64,2.10393398]
[1769236365203,5.20285461,127.66,127.64,2.10393398]
[1769236365503,0.97737322,127.67,127.64,2.10393398]
[1769236365808,5.20290347,127.66,127.64,2.10393398]
[1769236366011,0.97737322,127.67,127.64,2.10393398]
[1769236366217,5.20290213,127.66,127.64,2.10393398]
[1769236366391,0.97737322,127.67,127.64,2.10393398]
[1769236366715,5.2028595,127.66,127.64,2.10393398]
[1769236366915,0.97737322,127.67,127.64,2.10393398]
[1769236367209,5.20286489,127.66,127.64,2.10393398]
[1769236367414,0.97737322,127.66,127.63,2.25010993]
[1769236371919,0.97737322,127.66,127.63,2.10393398]
[1769236375618,0.97737322,127.66,127.62,19.72971842]
[1769236375801,0.97737322,127.66,127.63,2.10393398]
[1769236378025,0.97737322,127.66,127.62,2.25290056]
[1769236382630,0.97737322,127.66,127.62,0.14896658]
[1769236383128,0.97737322,127.66,127.63,0.15139454]
[1769236384816,0.97737322,127.66,127.63,2.25532852]
[1769236388931,0.97737322,127.66,127.63,2.25473184]
[1769236401854,0.97737322,127.66,127.64,2.1033373]
[1769236407077,0.97737322,127.66,127.63,2.25473184]
[1769236435594,5.25513777,127.65,127.63,2.25473184]
[1769236435797,0.97737322,127.66,127.63,2.25473184]
[1769236436098,5.25513912,127.65,127.63,2.25473184]
[1769236436296,0.97737322,127.66,127.63,2.25473184]
[1769236436598,5.25513985,127.65,127.63,2.25473184]
[1769236436784,0.97737322,127.66,127.63,2.25473184]
[1769236436984,5.25493515,127.65,127.63,2.25473184]
[1769236437182,0.97737322,127.66,127.63,2.25473184]
[1769236437381,5.25452741,127.65,127.63,2.25473184]
[1769236437685,0.97737322,127.66,127.63,2.25473184]
[1769236437992,5.25452741,127.65,127.63,2.25473184]
[1769236438192,0.97737322,127.66,127.63,2.25473184]
[1769236438395,5.25452685,127.65,127.63,2.25473184]
[1769236438693,0.97737322,127.66,127.63,2.25473184]
[1769236438999,5.25452685,127.65,127.63,2.25473184]
[1769236439184,0.97737322,127.66,127.63,2.25473184]
[1769236439482,5.25452901,127.65,127.63,2.25473184]
[1769236439684,0.97737322,127.66,127.63,2.25473184]
[1769236439884,5.25431692,127.65,127.63,2.25473184]
[1769236440086,0.97737322,127.66,127.63,2.25473184]
[1769236440283,5.25366654,127.65,127.63,2.25473184]
[1769236440584,0.97737322,127.66,127.63,2.25473184]
[1769236440784,5.25366183,127.65,127.63,2.25473184]
[1769236440988,0.97737322,127.66,127.63,2.25473184]
[1769236441193,5.25386969,127.65,127.63,2.25473184]
[1769236441385,0.97737322,127.66,127.63,2.25473184]
[1769236441589,5.25387054,127.65,127.63,2.25473184]
[1769236441892,0.97737322,127.66,127.63,2.25473184]
[1769236442091,5.25492624,127.65,127.63,2.25473184]
[1769236442391,0.97737322,127.66,127.63,2.25473184]
[1769236442593,5.25500551,127.65,127.63,2.25473184]
[1769236442888,0.97737322,127.66,127.63,2.25473184]
[1769236443198,5.25500551,127.65,127.63,2.25473184]
[1769236443399,0.97737322,127.66,127.63,2.25473184]
[1769236443699,6.2510186,127.65,127.63,2.25473184]
[1769236443902,0.99601274,127.65,127.63,2.25473184]
[1769236447399,0.30496296,127.65,127.63,2.25473184]
[1769236450903,0.30496296,127.65,127.63,2.25458022]
[1769236460496,0.30496296,127.65,127.63,2.10318568]
[1769236468717,0.30496296,127.65,127.62,0.72633949]
[1769236468907,0.30496296,127.65,127.63,2.10318568]
[1769236475623,0.30496296,127.65,127.62,0.72633949]